Cogmind - Beta 15 @@@ ROGUE MODE // 2025.06.02 @ 22:19:47 Player: Xan Kriegor Result: Self-destructed Performance ------------- Evolutions (1) 500 Regions Visited (2) 400 Robots Destroyed (11) 55 Value Destroyed (245) 245 Prototype IDs (0) 0 Alien Tech Used (0) 0 Bonus (0) 0 TOTAL SCORE: 1200 Bonus ------- None Cogmind --------- Core Integrity 332/400 Matter 266/300 Energy 100/100 System Corruption 26% Temperature Cool (0) Movement Walking (120) Location -9/Materials Parts ------- > --- POWER (1) -------- (None) > --- PROPULSION (4) --- Aluminum Leg Improved Aluminum Leg Hover Unit > --- UTILITY (2) ------ Small Storage Unit > --- WEAPON (2) ------- Light Cannon > --- INVENTORY (8) ---- Light Ion Engine Improved Ion Engine Heat Sink Light Assault Rifle Light Assault Rifle Peak State ------------ > --- POWER ------------ Light Ion Engine > --- PROPULSION ------- Hover Unit Hover Unit Hover Unit Hover Unit > --- UTILITY ---------- Small Storage Unit Sensor Array > --- WEAPON ----------- Medium Laser Light Cannon > --- INVENTORY -------- Light Ion Engine Improved Ion Engine Aluminum Leg Improved Aluminum Leg Heat Sink Melee Analysis Suite Light Assault Rifle Light Assault Rifle [Rating: 10] Favorites ----------- Power Light Ion Engine Engine Light Ion Engine Propulsion Hover Unit Leg Aluminum Leg Wheel Wheel Hover Unit Hover Unit Utility Small Storage Unit Device Sensor Array Storage Small Storage Unit Weapon Medium Laser Energy Gun Medium Laser Ballistic Gun Light Assault Rifle Ballistic Cannon Light Cannon Build | -11 -10 -9 ------- Run | Yrd Mat Mat Slots Evolved 2 | . . 2 Power . | . . . Propulsion 2 | . . 2 Utility . | . . . Weapon . | . . . Parts Attached 19 | 6 6 7 Power 2 | 1 1 . Engine 2 | 1 1 . Core . | . . . Reactor . | . . . Propulsion 10 | 2 3 5 Treads . | . . . Leg 2 | . . 2 Wheel 2 | 2 . . Hover 6 | . 3 3 Flight . | . . . Utility 4 | 1 2 1 Device 3 | . 2 1 Storage 1 | 1 . . Processor . | . . . Hackware . | . . . Protection . | . . . Artifact . | . . . Weapon 3 | 2 . 1 Energy Gun 1 | 1 . . Energy Cannon . | . . . Ballistic Gun 1 | 1 . . Ballistic Cannon 1 | . . 1 Launcher . | . . . Special Weapon . | . . . Impact Weapon . | . . . Slashing Weapon . | . . . Piercing Weapon . | . . . Special Melee Weapon . | . . . Unidentified Prototypes . | . . . Parts Lost 9 | . 1 8 Power 2 | . 1 1 Propulsion 4 | . . 4 Utility 2 | . . 2 Weapon 1 | . . 1 Highest Loss Streak 7 | . 1 7 To Critical Strikes . | . . . Average Backups 5 | 4 7 5 Power 1 | . 1 1 Propulsion 1 | 2 3 . Utility . | . . 1 Weapon 1 | . 1 2 Tool/Special . | . . . Unused Backups 9 | . 4 5 Power 2 | . . 2 Propulsion 4 | . 4 . Utility 2 | . . 2 Weapon 1 | . . 1 Tool/Special . | . . . Average Slot Usage (%) 98 | . 98 98 Engine 11 | . 14 11 Wheel 3 | . 10 . Hover 34 | . 17 42 Device 11 | . 12 10 Storage 11 | . 14 11 Energy Gun 11 | . 14 10 Ballistic Gun 5 | . 14 1 Ballistic Cannon 6 | . . 9 Peak Build Rating 10 | 6 7 10 Average Rating 8 | 4 6 9 On Entrance 4 | . 6 7 Naked Turns . | . . . Heaviest Build 14 | 11 12 14 Greatest Support 26 | 26 26 24 Greatest Overweight (x) . | . . . Average Overweight (x) . | . . . Largest Inventory Capacity 8 | 8 8 8 Average Capacity 7 | 6 8 8 Most Carried 8 | 6 8 8 Average Carried 5 | 4 7 5 Final Capacity 8 | 8 8 8 Final Carried 7 | 6 7 5 Class Distribution -------------------- 100% | Mutant Dominant Class ---------------- Mutant | -10/Materials Mutant | -9/Materials Resources | -11 -10 -9 ----------- Run | Yrd Mat Mat Matter Collected 429 | 238 91 100 Remotely . | . . . Salvage Created 281 | . 171 110 Parts 19 | . 12 7 Haulers Intercepted . | . . . Recyclers Shooed . | . . . Parts Field Recycled . | . . . Retrieved Matter . | . . . Parts Self-Destructed . | . . . Prevented . | . . . Kills | -11 -10 -9 ------- Run | Yrd Mat Mat Combat Hostiles Destroyed 8 | . 5 3 Guns 6 | . 5 1 Cannons 2 | . . 2 Classes Destroyed 6 | . 5 1 Worker 1 | . 1 . Builder 1 | . 1 . Watcher 1 | . 1 . Swarmer 3 | . 3 . Grunt 4 | . 2 2 Duelist 1 | . . 1 Best Kill Streak 4 | . 4 2 Combat Bots Only 2 | . 2 2 Max Kills in Single Turn 1 | . 1 1 Gunslinging . | . . . Exploded . | . . . Melee . | . . . Uniques/NPCs Destroyed . | . . . Combat | -11 -10 -9 -------- Run | Yrd Mat Mat Hostile Shots Fired 92 | . 51 41 Missed 30 | . 15 15 Hits 62 | . 36 26 Melee 11 | . . 11 Projectile 51 | . 36 15 Critical Strikes 2 | . 2 . Damage Taken 794 | . 319 475 Core 148 | . 80 68 Absorbed by Shields . | . . . Core Remaining (%) 84 | 100 68 . Volleys Fired 51 | . 29 22 Largest 2 | . 2 2 Hottest 80 | . 70 80 Shots Fired 92 | . 58 34 Gun 72 | . 58 14 Cannon 20 | . . 20 Launcher . | . . . Special . | . . . Kinetic 49 | . 29 20 Thermal 43 | . 29 14 Explosive . | . . . Electromagnetic . | . . . Robot Hit Streak 8 | . 8 6 Robot Miss Streak 4 | . 3 4 Penetration Max . | . . . Secondary Targets 1 | . 1 . Max Gunslinging Chain 1 | . 1 . Shots Hit Robots 57 | . 35 22 Core Hits 21 | . 13 8 Critical Kills . | . . . Critical Parts Destroyed . | . . . Critical Strikes 1 | . . 1 Burn 1 | . . 1 Melee Attacks . | . . . Impact . | . . . Slashing . | . . . Piercing . | . . . Sneak Attacks . | . . . Combat Hostiles . | . . . Follow-up Attacks . | . . . Damage Inflicted 714 | . 378 336 Guns 505 | . 378 127 Cannons 206 | . . 206 Explosions . | . . . Melee . | . . . Ramming 3 | . . 3 Kinetic 333 | . 127 206 Thermal 378 | . 251 127 Explosive . | . . . Electromagnetic . | . . . Impact . | . . . Slashing . | . . . Piercing . | . . . Highest Corruption 26 | . . 26 Average Corruption 16 | . . 16 Corruption Purged . | . . . Corruption Blocked . | . . . Effects 4 | . . 4 Message Errors 1 | . . 1 Energy Discharges 1 | . . 1 Weapon Failures 2 | . . 2 Overload Shots . | . . . Overflow Damage . | . . . Projectiles . | . . . Explosions . | . . . Melee . | . . . Knockbacks 2 | . . 2 Impact . | . . . Kinetic 2 | . . 2 Secondary . | . . . Self-Inflicted Damage . | . . . Shots . | . . . Rammed . | . . . Targets Rammed 1 | . . 1 Kicked 1 | . . 1 Crushed . | . . . Highest Temperature 213 | . 169 213 Average Temperature 76 | . 74 81 Received Heat Transfer 162 | . 72 90 Siege Activations . | . . . Martial Activations . | . . . Shielding Activations . | . . . Robots Disrupted . | . . . Combat Hostiles . | . . . Robots Corrupted . | . . . Combat Hostiles . | . . . Parts Fried . | . . . Impact Corruptions . | . . . Robots Melted . | . . . Combat Hostiles . | . . . Parts Melted 2 | . 2 . Heat Transferred 1184 | . 740 444 Parts Sabotaged . | . . . Parts Stolen . | . . . Parts Stripped . | . . . Power Chain Reactions . | . . . Alert | -11 -10 -9 ------- Run | Yrd Mat Mat Maximum Alert Level . | . . . Low Security (%) 100 | 100 100 100 Level 1 . | . . . Level 2 . | . . . Level 3 . | . . . Level 4 . | . . . Level 5 . | . . . High Security . | . . . Max Security . | . . . Peak Influence 116 | . 86 116 Initial 31 | . . 31 Average 48 | . 33 60 Influence Increases 446 | . 166 280 Destroy 0b10 Robot/C 160 | . 100 60 Destroy 0b10 Robot/NC 15 | . 15 . Destroy Leader 32 | . 22 10 Successful Hack 14 | . 14 . Disable Machine 15 | . . 15 Lose Combat Pursuer 210 | . 15 195 Influence Decreases 446 | . 90 356 Entered New Map 45 | . . 45 Time Decay 331 | . 80 251 Lost Part 70 | . 10 60 Squads Dispatched 2 | . 2 . Investigation . | . . . Extermination . | . . . Reinforcement 2 | . 2 . Assault . | . . . Garrison . | . . . Intercept . | . . . Searches Triggered . | . . . Construction Impeded . | . . . Haulers Reinforced . | . . . Active Scanning Responses . | . . . Cargo Convoy Interrupts . | . . . Stealth | -11 -10 -9 --------- Run | Yrd Mat Mat Distress Signals . | . . . Communications Jammed . | . . . Distress Signals . | . . . Times Spotted 31 | . 13 18 Peak Tracking Total 7 | . 5 7 Tactical Retreats 7 | . 1 6 Traps | -11 -10 -9 ------- Run | Yrd Mat Mat Traps Triggered . | . . . Indirectly . | . . . Trap Hack Attempts . | . . . Triggered . | . . . Disarmed . | . . . Reprogrammed . | . . . Reused . | . . . Traps Extracted . | . . . Installed . | . . . Triggered . | . . . Machines | -11 -10 -9 ---------- Run | Yrd Mat Mat Machines Disabled 1 | . . 1 Max in Single Turn 1 | . . 1 Machines Repaired . | . . . Machines Dismantled . | . . . Machines Sabotaged . | . . . Overloaded Fab Kills . | . . . Hacking | -11 -10 -9 --------- Run | Yrd Mat Mat Machines Accessed 2 | . 2 . Terminals 2 | . 2 . Fabricators . | . . . Repair Stations . | . . . Recycling Units . | . . . Scanalyzers . | . . . Garrison Access . | . . . Total Hacks 6 | . 6 . Successful 2 | . 2 . Failed 4 | . 4 . Catastrophic 3 | . 3 . Database Lockouts . | . . . Manual 5 | . 5 . Terminals 6 | . 6 . Fabricators . | . . . Repair Stations . | . . . Recycling Units . | . . . Scanalyzers . | . . . Garrison Access . | . . . Terminal Hacks 2 | . 2 . Level Access Points 1 | . 1 . Zone Layout 1 | . 1 . Fabricator Hacks . | . . . Repair Station Hacks . | . . . Recycling Unit Hacks . | . . . Scanalyzer . | . . . Garrison Access Hacks . | . . . Unauthorized Hacks . | . . . Terminals . | . . . Fabricators . | . . . Repair Stations . | . . . Recycling Units . | . . . Scanalyzers . | . . . Garrison Access . | . . . Data Cores Recovered . | . . . Used . | . . . Hacking Detections 2 | . 2 . Full Trace Events . | . . . Feedback Events . | . . . Feedback Blocked . | . . . Robot Schematics Acquired . | . . . Robots Built . | . . . Authchips . | . . . Time . | . . . Total Robot Build Rating . | . . . Part Schematics Acquired . | . . . Parts Built . | . . . Authchips . | . . . Time . | . . . Total Part Build Rating . | . . . Parts Repaired . | . . . Time . | . . . Parts Recycled . | . . . Recycled Matter . | . . . Retrieved Matter . | . . . Retrieved Components . | . . . Parts Scanalyzed . | . . . Part Schematics Acquired . | . . . Parts Damaged . | . . . Bothacking | -11 -10 -9 ------------ Run | Yrd Mat Mat Used RIF Installer . | . . . Robots Hacked . | . . . Non-combat . | . . . Combat . | . . . Robot Hacks Applied . | . . . Relay Couplers Released . | . . . Fabnet Peak Effective % . | . . . Robots Rewired . | . . . Allies Hacked . | . . . Hacks Repelled . | . . . Allies | -11 -10 -9 -------- Run | Yrd Mat Mat Total Allies . | . . . Largest Group . | . . . Highest-Rated Group . | . . . Highest-Rated Ally . | . . . Total Orders . | . . . Ally Attacks . | . . . Total Damage . | . . . Kills . | . . . Allies Corrupted . | . . . Allies Melted . | . . . Intel | -11 -10 -9 ------- Run | Yrd Mat Mat Active Infowar (turns) 763 | . 245 518 Sensors 563 | . 45 518 Terrain 200 | . 200 . Robot Analysis Total . | . . . Derelict Logs Recovered . | . . . Drone Launches . | . . . Drone Recoveries . | . . . Exploration | -11 -10 -9 ------------- Run | Yrd Mat Mat Turns Passed 868 | 60 257 551 Spaces Moved 576 | 47 217 312 Core 4 | 4 . . Treads . | . . . Legs 1 | . . 1 Wheels 105 | 43 62 . Hover 466 | . 155 311 Flight . | . . . Fastest Speed 48 | 50 56 48 Average Speed 57 | 84 65 48 Slowest Speed 120 | 90 90 120 Overloaded Moves . | . . . Propulsion Burnouts . | . . . Robots Hopped . | . . . Potential Cave-ins . | . . . Cave-ins Triggered . | . . . Exploration Rate (%) 18 | 3 43 9 Regions Visited 2 Branch Regions . Pre-discovered Areas . | . . . Known Exits Taken 1 | . 1 . Unknown Exits Taken 1 | 1 . . Scrap Searched . | . . . Spaces Dug . | . . . Terrain Destroyed . | . . . Melee . | . . . Projectile . | . . . AOE . | . . . Terrain Rammed . | . . . Walls Destroyed . | . . . Machines Disabled . | . . . Actions | -11 -10 -9 --------- Run | Yrd Mat Mat Total 1022 | 66 281 675 Wait 342 | 4 11 327 Move 574 | 46 216 312 Hop . | . . . Pick Up 24 | 10 9 5 Fast Attach 3 | 2 1 . Attach 12 | 4 2 6 Detach . | . . . Swap 5 | . 4 1 Drop 10 | . 9 1 Fire 51 | . 29 22 Melee . | . . . Ram . | . . . Kick 1 | . . 1 Crush . | . . . Escape Stasis . | . . . Rewire . | . . . Trap . | . . . Miscellaneous . | . . . Route ------- -11/Scrapyard -10/Materials (discovered 5 exits: *Mat x3 / [*Min x2]) -9/Materials History --------- Turn | Location | Event 32 | -11/Scrapyard | Discovered new exit (range 16) 61 | -11/Scrapyard | Entered Materials 204 | -10/Materials | Discovered new exit (range 16) 204 | -10/Materials | Identified exit to Materials 313 | -10/Materials | Build established: Mutant 316 | -10/Materials | Discovered new exit (range 16) 318 | -10/Materials | Entered another Materials area 318 | -9/Materials | Evolved 2 slots: Propulsion x2 840 | -9/Materials | System corruption reached 10% 869 | -9/Materials | Self-destructed Last Messages --------------- 00836_ Sensor Array destroyed. 00836_ System corrupted by crushing effect (+5). 00839_ Hover Unit destroyed. 00839_ System corrupted by crushing effect (+5). 00845_ Q3AEOXT#DPQN414NFYXOI 00845_ Hover Unit destroyed. 00845_ System corrupted by crushing effect (+1). 00847_ Heat Sink destroyed. 00847_ System corrupted by crushing effect (+3). 00850_ Med. Laser destroyed. 00850_ System corrupted by crushing effect (+3). 00853_ Knocked back. 00856_ Kicked B-36 Bruiser. 00860_ System corrupted: Energy discharge (-46). 00860_ Hover Unit destroyed. 00860_ Lgt. Ion Engine destroyed. 00860_ System corrupted by crushing effect (+4). 00860_ System corrupted by crushing effect (+5). 00862_ System corrupted: Lgt. Cannon jammed. 00866_ Knocked back. Map ----- +----------------------------------------------------+ | ???????????????# # #???????????????????? | | ???????????????# # #???????????????????? | | ???????????????# # #???????????????????? | | ???????????????# + """ """ #???????????????????? | | ???????????????# # """ """ #???????????????????? | | ???????????????# # """ """ #???????????????????? | | ???????????????# # #???????????????????? | | ???????????????# ###########???????????????????? | | ???????????????# #?????????????????????????????? | | ???????????????# #?????????????????????????????? | | ???????????????# #?????????????????????????????? | | ???????????????# #?????????????????????????????? | | ???????????????# #?????????????????????????????? | | ???????????????# #?????????????????????????????? | | ???????????????# #?????????????????????????????? | | ???????????????# #?????????????????????????????? | | ???????????????# #?????????????????????????????? | | ???????????????# #?????????????????????????????? | | ???????????????# #?????????????????????????????? | | ???????????????# #?????????????????????????????? | | ???????????????# #???########??????????????????? | | ???????????????# #???# #??????????????????? | | ???????????????# #???# #??????????????????? | | ???????????????# #???#g" " #??????????????????? | | ???????????????# #???#g""" #??????????????????? | | ???????????????# #???# @"" #??????????????????? | | ???????????????#! [#???# b % #??????????????????? | | ???????????????# %%########+###??????????????????? | | ???????????????# = #????????????????????? | | ???????????????# #????????????????????? | | ??????????###### #????????????????????? | | ??????????# #????????????????????? | | ??????????# ##########????????????????????? | | ??????????# #?????????????????????????????? | | ??????????# ### ##########?????????????????????? | | ??????????# # #?????????????????????? | | ??????????##### #?????????????????????? | | ??????????????# #?????????????????????? | | ??????????????# #?????????????????????? | | ??????????????# #?????????????????????? | | ??????????????##############?????????????????????? | | | | | | | | | | | | | | | | | | | +----------------------------------------------------+ Best States ------------- Heat Dissipation 38 Energy Generation 10 Energy Capacity 125 Matter Stores 300 Matter Capacity 300 Sight Range 16 Robot Scan Range 14 Terrain Scan Range 14 Terrain Scan Density 10 Evasion (%) 55 Item Schematics ----------------- None Robot Schematics ------------------ None Fabricated ------------ Nothing Repaired ---------- Nothing Alien Tech Used ----------------- None Achievements -------------- None Challenges ------------ None Game ------ Seed CoreThermoelectricMatterbank Manual? 0 Play Time 00:11:37 Cumulative 20.7 hours Start 2025.06.02 @ 22:08:56 End 2025.06.02 @ 22:19:47 Sessions 1 Manual Loads 0 Difficulty Rogue Special Mode None Game No. 17 Rogue 17 Adventurer 0 Explorer 0 Win Type - Total 0 Types 0/0/0/0/0/0/0/0/0/0 Lore% 10 Gallery% 20 Achievement% 17 Wizard Run 0 Options --------- Layout 0 ASCII 0 Keyboard 0 Movement Mouse Keybinds 0 Fullscreen 2 Font 18/Smallcaps Map View 76x50 Zoom Use 0% Tactical HUD 1 Map Filters NONE Filters NONE Steam 1 RUN: 7883e283-ecde-491c-9070-84ef82da0815